bitfinex/quotes_BTCUSD_20230114
["timestamp","ask_amount","ask_price","bid_price","bid_amount"]
[1673657756902,0.19072595,20911.0,20905.0,0.72610949]
[1673657757113,0.40431528,20914.0,20904.0,0.15]
[1673657757114,0.19072595,20910.0,20904.0,0.15]
[1673657757391,0.19072595,20909.0,20905.0,0.00497267]
[1673657757633,0.12832447,20908.0,20904.0,0.00966697]
[1673657757881,0.12832447,20907.0,20904.0,0.00966697]
[1673657758133,0.12832447,20907.0,20904.0,0.26657495]
[1673657758388,0.12832447,20907.0,20900.0,0.87781606]
[1673657758642,0.12832447,20906.0,20901.0,0.12781606]
[1673657758895,0.12832447,20905.0,20904.0,0.2846698]
[1673657759139,0.27003203,20911.0,20900.0,0.15]
[1673657759388,0.80552616,20910.0,20901.0,0.19072595]
[1673657759629,0.80552616,20910.0,20902.0,0.19072595]
[1673657759630,0.91739305,20909.0,20902.0,0.19072595]
[1673657759878,0.32637469,20915.0,20903.0,0.19072595]
[1673657760130,0.24121447,20915.0,20904.0,0.19072595]
[1673657760391,0.24121447,20915.0,20905.0,0.19072595]
[1673657760392,0.80552616,20914.0,20905.0,0.19072595]
[1673657760629,1.00744254,20913.0,20906.0,0.19072595]
[1673657760906,1.00747868,20912.0,20900.0,0.16431302]
[1673657761177,1.00747868,20912.0,20900.0,0.35503897]
[1673657761178,1.00747868,20911.0,20900.0,0.35503897]
[1673657761433,0.47720169,20908.0,20900.0,0.2000663]
[1673657761671,0.60552616,20907.0,20900.0,0.19072595]
[1673657761943,0.14371448,20907.0,20901.0,0.53085798]
[1673657762187,0.1434106,20906.0,20897.0,0.35536609]
[1673657762426,0.2,20911.0,20901.0,0.15]
[1673657762673,0.2,20911.0,20902.0,0.19072595]
[1673657762674,0.47720169,20909.0,20902.0,0.19072595]
[1673657762917,0.62061229,20908.0,20903.0,0.19072595]
[1673657763159,0.47720169,20907.0,20903.0,0.19072595]
[1673657763442,0.2,20906.0,20903.0,0.19072595]
[1673657763683,0.55024753,20911.0,20897.0,0.01648047]
[1673657763947,0.1434106,20910.0,20906.0,0.03595168]
[1673657764180,0.2,20916.0,20907.0,0.19072595]
[1673657764424,0.46527709,20918.0,20908.0,0.39072595]
[1673657764425,0.11376,20918.0,20908.0,0.39072595]
[1673657764673,0.47720169,20916.0,20909.0,0.49072595]
[1673657764913,0.47720169,20916.0,20910.0,0.19072595]
[1673657765160,0.2,20920.0,20911.0,0.19072595]
[1673657765403,0.66497827,20924.0,20912.0,0.19072595]
[1673657765650,0.51569252,20924.0,20913.0,0.19072595]
[1673657765906,0.1384106,20923.0,20914.0,0.19072595]
[1673657766156,0.1384106,20922.0,20915.0,0.19072595]
[1673657766397,0.1384106,20922.0,20916.0,0.19072595]
[1673657766646,0.5169,20922.0,20916.0,0.3]
[1673657767149,0.40195252,20924.0,20916.0,0.57436035]
[1673657767387,0.40195252,20926.0,20917.0,0.39072595]
[1673657767647,0.1384106,20926.0,20918.0,0.49072595]
[1673657767901,0.11507,20928.0,20919.0,0.39072595]
[1673657768146,0.40195252,20933.0,20920.0,0.19072595]
[1673657768412,0.1384106,20932.0,20924.0,0.19072595]
[1673657768655,0.98910169,20933.0,20925.0,0.19072595]
[1673657768900,0.98910169,20933.0,20926.0,0.19072595]
[1673657769161,0.11507,20938.0,20924.0,0.15]
[1673657769162,0.91885252,20937.0,20927.0,0.19072595]
[1673657769424,0.2,20936.0,20928.0,0.55874569]
[1673657769670,0.11494,20939.0,20929.0,0.49072595]
[1673657769956,0.74606886,20939.0,20930.0,0.19072595]
[1673657770202,0.51689252,20941.0,20929.0,0.3]
[1673657770203,0.29129895,20943.0,20931.0,0.19072595]
[1673657770465,0.15200761,20945.0,20932.0,0.59177749]
[1673657770703,0.15200762,20945.0,20933.0,0.89177749]
[1673657770948,0.01334203,20949.0,20935.0,0.6]
[1673657771194,0.15200762,20948.0,20936.0,0.49072595]
[1673657771442,0.15200762,20947.0,20937.0,0.19072595]
[1673657771686,0.2,20948.0,20938.0,0.19091595]
[1673657771930,0.01334203,20949.0,20939.0,0.19072595]
[1673657772174,0.45060629,20950.0,20940.0,0.19072595]
[1673657772425,0.45060629,20950.0,20941.0,0.19072595]
[1673657772680,0.45060629,20950.0,20942.0,0.19072595]
[1673657772925,0.45060629,20950.0,20943.0,0.19072595]
[1673657772926,0.4501264,20950.0,20943.0,0.19072595]
[1673657773163,0.4501264,20950.0,20941.0,0.8970766]
[1673657773164,0.44455226,20950.0,20944.0,0.19072595]
[1673657773428,0.44455226,20950.0,20942.0,0.3]
[1673657773666,0.3693145,20950.0,20945.0,0.2]
[1673657773914,0.30268971,20950.0,20942.0,0.49072595]
[1673657774157,0.30268971,20950.0,20940.0,0.26465]
[1673657774158,0.47720169,20949.0,20940.0,0.15]
[1673657774404,0.2,20948.0,20940.0,0.34072595]
[1673657774675,0.5169,20946.0,20937.0,0.15]
[1673657774911,0.5169,20946.0,20937.0,0.34072595]
[1673657774912,1.38666869,20946.0,20937.0,0.34072595]
[1673657775158,0.98910169,20946.0,20937.0,0.34072595]
[1673657775413,0.5119,20942.0,20937.0,0.15]
[1673657775665,0.5169,20944.0,20940.0,0.31636006]
[1673657775953,0.47720169,20943.0,20937.0,0.00019]
[1673657776194,0.67720169,20942.0,20937.0,0.00019]
[1673657776453,0.2,20940.0,20929.0,0.15]
[1673657776694,0.5169,20936.0,20927.0,0.36088873]
[1673657776938,1.38666869,20935.0,20925.0,0.26494]
[1673657777192,0.592567,20934.0,20925.0,0.15]
[1673657777446,0.00019,20933.0,20925.0,0.34091595]
[1673657777686,0.392567,20938.0,20926.0,1.34572637]
[1673657777930,0.09991479,20937.0,20927.0,0.19072595]
[1673657778170,0.29991479,20936.0,20928.0,0.19072595]
[1673657778413,0.29991479,20936.0,20925.0,0.26321]
[1673657778414,0.09991479,20935.0,20929.0,0.19072595]
[1673657778658,0.2,20936.0,20929.0,0.19072595]
[1673657778659,0.09991479,20934.0,20929.0,0.19072595]
[1673657778906,0.09991479,20933.0,20925.0,0.15019]
[1673657779145,1.29401648,20932.0,20925.0,0.15019]
[1673657779411,0.09991479,20931.0,20924.0,0.36465495]
[1673657779653,0.09991479,20930.0,20924.0,0.36465495]
[1673657779891,0.09991479,20929.0,20924.0,0.00941099]
[1673657780137,0.09991479,20928.0,20925.0,0.31100716]
[1673657780379,0.39160572,20933.0,20925.0,0.19072595]
[1673657780632,0.2,20936.0,20924.0,0.00941099]
[1673657780866,0.39160572,20941.0,20940.0,0.0039]
[1673657781118,0.1124,20946.0,20940.0,0.0039]
[1673657781119,0.1124,20946.0,20940.0,0.04246]
[1673657781358,0.3124,20948.0,20941.0,0.19072595]
[1673657781600,0.3124,20948.0,20942.0,0.19072595]
[1673657781601,0.99410169,20945.0,20942.0,0.19072595]
[1673657781847,0.47720169,20947.0,20943.0,0.19072595]
[1673657782135,0.47720169,20947.0,20944.0,0.19072595]
[1673657782393,0.19903251,20946.0,20945.0,0.18572595]
[1673657782637,0.31654679,20950.0,20946.0,0.31340786]
[1673657782898,0.31654679,20950.0,20947.0,0.3]
[1673657783171,0.31654679,20950.0,20948.0,0.13820234]
[1673657783459,0.30623413,20950.0,20948.0,0.33820234]
[1673657783705,0.30623413,20950.0,20949.0,0.3]
[1673657784434,0.01368184,20950.0,20949.0,0.3]
[1673657784726,0.01356151,20956.0,20949.0,0.3]
[1673657784962,0.20428746,20956.0,20950.0,0.13820234]
[1673657785202,0.01356151,20956.0,20951.0,0.13820234]
[1673657785453,0.01356151,20956.0,20952.0,0.13820234]
[1673657785702,0.39004822,20963.0,20953.0,0.13820234]
[1673657785948,0.11004,20966.0,20954.0,0.33820234]
[1673657785949,0.01346939,20957.0,20954.0,0.33820234]
[1673657786198,0.00572881,20957.0,20954.0,0.33820234]
[1673657786459,0.00572881,20957.0,20955.0,0.3]
[1673657786718,0.00572881,20957.0,20955.0,0.43820234]
[1673657786960,0.001,20965.0,20956.0,0.2]
[1673657787209,0.10985,20973.0,20958.0,0.2]
[1673657787509,0.5169,20983.0,20959.0,0.5283002]
[1673657787765,0.952574,20996.0,20959.0,0.5283002]
[1673657787766,0.47720169,20982.0,20980.0,0.04977576]
[1673657788013,0.05228007,20982.0,20980.0,0.04977576]
[1673657788250,0.476458,20989.0,20980.0,0.04930176]
[1673657788495,0.476646,20980.0,20962.0,0.3]
[1673657788743,0.476646,20980.0,20959.0,0.33203235]
[1673657788744,0.59981,20970.0,20959.0,0.33203235]
[1673657789010,0.47720169,20963.0,20953.0,0.51676657]
[1673657789256,0.50139374,20969.0,20945.0,0.11151]
[1673657789257,0.19072595,20959.0,20945.0,0.31151]
[1673657789508,0.19072595,20955.0,20946.0,0.00019]
[1673657789752,0.19072595,20954.0,20947.0,0.11077]
[1673657789990,0.19072595,20954.0,20951.0,0.27312337]
[1673657789991,0.19072595,20953.0,20951.0,0.27312337]
[1673657790240,0.47720169,20954.0,20946.0,0.00019]
[1673657790241,0.39072595,20952.0,20949.0,0.3662316]
[1673657790490,0.39072595,20952.0,20942.0,0.14981]
[1673657790491,0.47720169,20950.0,20942.0,0.14981]
[1673657790740,1.02866495,20949.0,20947.0,0.00019]
[1673657790979,0.723899,20948.0,20926.0,0.11065]
[1673657791223,0.66792764,20941.0,20930.0,0.00019]
[1673657791480,0.39097242,20940.0,20930.0,0.00019]
[1673657791741,0.90787242,20940.0,20929.0,0.36403957]
[1673657791976,0.66792764,20941.0,20929.0,0.08767213]
[1673657792214,0.47720169,20938.0,20929.0,0.35187713]
[1673657792474,0.19072595,20937.0,20929.0,0.00038]
[1673657792711,0.09745903,20936.0,20935.0,0.00019]
[1673657792966,0.47720169,20936.0,20929.0,0.10995]
[1673657793227,0.19072595,20935.0,20929.0,0.09845691]
[1673657793466,0.10974,20945.0,20935.0,0.00019]
[1673657793707,0.21727082,20937.0,20936.0,0.09826691]
[1673657793953,0.19769736,20939.0,20936.0,0.01734363]
[1673657794205,0.19072595,20945.0,20938.0,0.00019]
[1673657794444,0.10952,20955.0,20941.0,0.12427096]
[1673657794720,0.21581051,20950.0,20949.0,0.00019]
[1673657794958,0.01346307,20948.0,20943.0,0.30326691]
[1673657795207,0.01346307,20948.0,20944.0,0.40326691]
[1673657795453,0.12257307,20948.0,20944.0,0.3]
[1673657795706,0.31329902,20948.0,20944.0,0.3]
[1673657795986,0.18312219,20945.0,20944.0,0.3]
[1673657796217,0.10952,20953.0,20944.0,0.3]
[1673657796218,0.24719943,20955.0,20945.0,0.2]
[1673657796459,0.20791718,20958.0,20949.0,0.19367624]
[1673657796697,0.20791718,20958.0,20950.0,0.19072595]
[1673657796698,0.18934968,20957.0,20950.0,0.19072595]
[1673657796935,0.2,20960.0,20951.0,0.19072595]
[1673657797176,0.10909,20963.0,20951.0,0.19072595]
[1673657797177,0.09402247,20963.0,20952.0,0.19072595]
[1673657797420,1.2254,20968.0,20952.0,0.19072595]
[1673657797421,0.26606297,20967.0,20953.0,0.19072595]
[1673657797683,0.08917724,20966.0,20954.0,0.58076873]
[1673657797947,0.19963991,20966.0,20956.0,0.2]
[1673657798180,0.08917724,20965.0,20957.0,0.19072595]
[1673657798422,0.11517795,20962.0,20958.0,0.19072595]
[1673657798682,0.10283032,20965.0,20958.0,0.49072595]
[1673657798921,0.10555422,20964.0,20959.0,0.47207157]
[1673657799161,0.10555422,20964.0,20960.0,0.49072595]
[1673657799408,0.10283032,20965.0,20960.0,0.49072595]
[1673657799653,1.2254,20968.0,20960.0,0.49072595]
[1673657799957,0.09618658,20964.0,20961.0,0.39072595]
[1673657800208,0.476683,20979.0,20960.0,0.3]
[1673657800209,0.27609632,20975.0,20965.0,0.04793387]
[1673657800461,0.01346939,20980.0,20971.0,0.19072595]
[1673657800717,0.01346939,20980.0,20972.0,0.19072595]
[1673657800968,0.0039496,20980.0,20973.0,0.19072595]
[1673657801277,0.0039496,20980.0,20974.0,0.19072595]
[1673657801528,0.38098731,20987.0,20975.0,0.39072595]
[1673657801776,0.39037126,20993.0,20976.0,0.83538221]
[1673657802011,0.39037126,20996.0,20978.0,0.19072595]
[1673657802259,0.01246952,20993.0,20980.0,0.19072595]
[1673657802520,0.01572009,20995.0,20985.0,0.6]
[1673657802769,0.01498119,21004.0,20986.0,0.5]
[1673657803008,0.1173262,21003.0,20987.0,0.19072595]
[1673657803247,1.07621,21000.0,20987.0,0.19072595]
[1673657803503,0.6,20993.0,20987.0,0.19072595]
[1673657803752,0.59452789,20992.0,20986.0,0.29521296]
[1673657803991,0.6,20990.0,20984.0,0.36476689]
[1673657804229,0.2,20986.0,20978.0,0.32369955]
[1673657804475,0.2,20986.0,20974.0,0.33570425]
[1673657804476,0.47720169,20984.0,20974.0,0.33570425]
[1673657804734,0.67720169,20984.0,20974.0,0.30352598]
[1673657804984,1.07720169,20981.0,20964.0,0.16914921]
[1673657805247,0.66792764,20980.0,20970.0,0.33288061]
[1673657805493,0.66792764,20980.0,20962.0,0.15]
[1673657805494,1.07720169,20977.0,20962.0,0.15]
[1673657805740,1.07720169,20977.0,20970.0,0.00019]
[1673657805741,0.66792764,20976.0,20970.0,0.00019]
[1673657805977,0.993622,20977.0,20970.0,0.00019]
[1673657805978,0.2,20983.0,20970.0,0.00019]
[1673657806217,0.30617,20984.0,20970.0,0.00019]
[1673657806218,0.30617,20984.0,20976.0,0.33485503]
[1673657806473,0.10603,20985.0,20976.0,0.33485503]
[1673657806715,0.38762756,20990.0,20976.0,0.48485503]
[1673657806961,0.38762756,20990.0,20977.0,0.7470305]
[1673657806962,0.19072595,20990.0,20977.0,0.7470305]
[1673657807207,0.19072595,20989.0,20981.0,0.001]
[1673657807484,0.24995287,20981.0,20978.0,0.31734363]
[1673657807723,0.19072595,20981.0,20978.0,0.31734363]
[1673657808227,0.19072595,20980.0,20979.0,0.3]
[1673657808477,0.10599,20984.0,20979.0,0.3]
[1673657808721,0.66792764,20983.0,20976.0,0.33485503]
[1673657808965,0.10599,20984.0,20976.0,0.33485503]
[1673657808966,0.86792764,20982.0,20976.0,0.33485503]
[1673657809215,0.46027027,20981.0,20977.0,0.35827505]
[1673657809468,0.19072595,20981.0,20976.0,0.33485503]
[1673657809735,0.19072595,20980.0,20976.0,0.33485503]
[1673657809986,0.2,20982.0,20969.0,0.25578]
[1673657809987,0.86792764,20979.0,20974.0,0.00019]
[1673657810223,0.86792764,20978.0,20974.0,0.00019]
[1673657810476,0.66792764,20977.0,20974.0,0.00019]
[1673657810730,0.2,20978.0,20974.0,0.00019]
[1673657810964,0.2,20982.0,20977.0,0.33180262]
[1673657811217,0.58664232,20987.0,20977.0,0.33180262]
[1673657811471,0.10525,20998.0,20983.0,0.13162397]
[1673657811718,0.10525,20992.0,20983.0,0.13162397]
[1673657811949,0.67720169,20991.0,20983.0,0.13162397]
[1673657812194,0.66792764,20990.0,20983.0,0.13162397]
[1673657812455,0.2,20991.0,20984.0,0.26000458]
[1673657812456,0.66792764,20989.0,20984.0,0.26000458]
[1673657812699,0.66792764,20988.0,20983.0,0.13162397]
[1673657812951,0.2,20986.0,20978.0,0.36511361]
[1673657813199,0.2,20986.0,20977.0,0.33180262]
[1673657813200,0.47720169,20984.0,20981.0,0.34003965]
[1673657813442,0.19072595,20985.0,20981.0,0.00019]
[1673657813443,0.66792764,20983.0,20981.0,0.00019]
[1673657813707,0.86792764,20982.0,20981.0,0.00019]
[1673657813964,0.18307866,20982.0,20981.0,0.00019]
[1673657814203,0.10462,20985.0,20981.0,0.2951856]
[1673657814452,0.58182169,20990.0,20981.0,0.00019]
[1673657814684,0.2,20985.0,20981.0,0.00019]
[1673657815205,0.19072595,20989.0,20981.0,0.00019]
[1673657815466,0.27092051,20988.0,20985.0,0.11290874]
[1673657815711,0.34588755,20986.0,20985.0,0.11290874]
[1673657815956,0.18452891,20986.0,20985.0,0.11290874]
[1673657816208,0.18452891,20988.0,20985.0,0.11290874]
[1673657816691,0.25940214,20986.0,20985.0,0.1334308]
[1673657816945,0.49429935,20986.0,20985.0,0.11290874]
[1673657817203,0.1782196,20986.0,20985.0,0.07650874]
[1673657817451,0.2,20985.0,20982.0,0.00019]
[1673657817715,0.2,20983.0,20982.0,0.00019]
[1673657817964,0.2,20983.0,20977.0,0.33180262]
[1673657817965,0.1782196,20983.0,20977.0,0.33180262]
[1673657818204,0.19072595,20982.0,20977.0,0.33180262]
[1673657818444,0.10438,20985.0,20977.0,0.33180262]
[1673657818445,0.19072595,20981.0,20977.0,0.33180262]
[1673657818690,0.19072595,20980.0,20977.0,0.35232468]
[1673657818925,0.19072595,20980.0,20978.0,0.3577227]
[1673657819166,0.00019,20982.0,20977.0,0.35232468]
[1673657819409,0.01449588,20991.0,20987.0,0.21892965]
[1673657820202,0.31411249,20990.0,20987.0,0.21892965]
[1673657820703,0.31411249,20990.0,20988.0,0.02052206]
[1673657820942,0.31411249,20990.0,20988.0,0.32052206]
[1673657821204,0.01449588,20991.0,20988.0,0.32052206]
[1673657821453,0.23344766,20997.0,20991.0,0.21729402]
[1673657821691,0.23344766,20997.0,20992.0,0.3]
[1673657821692,0.93002934,20997.0,20992.0,0.3]
[1673657821946,0.47720169,20996.0,20991.0,0.21729402]
[1673657822206,0.47720169,20995.0,20991.0,0.21729402]
[1673657822477,0.47720169,20995.0,20990.0,0.02052206]
[1673657822714,0.6,20993.0,20979.0,0.16013991]
[1673657822960,1.37936642,20992.0,20981.0,0.15219185]
[1673657823201,0.5169,20990.0,20981.0,0.13166979]
[1673657823447,0.993318,20990.0,20981.0,0.13166979]
[1673657823697,0.47720169,20987.0,20981.0,6.979e-05]
[1673657823949,0.47720169,20987.0,20977.0,0.33180262]
[1673657823950,0.5169,20982.0,20977.0,0.33180262]
[1673657824224,0.5169,20978.0,20977.0,2.62e-06]
[1673657824459,0.37793096,20978.0,20977.0,2.62e-06]
[1673657824711,0.84513265,20978.0,20977.0,2.62e-06]
[1673657825209,0.49989817,20978.0,20977.0,2.62e-06]
[1673657825447,0.6644067,20978.0,20977.0,2.62e-06]
[1673657825690,1.1813067,20978.0,20977.0,2.62e-06]
[1673657825943,0.97880075,20978.0,20977.0,2.62e-06]
[1673657826183,0.99505473,20978.0,20977.0,2.62e-06]
[1673657826394,0.6644067,20978.0,20977.0,2.62e-06]
[1673657826728,0.98694388,20978.0,20977.0,2.62e-06]
[1673657826970,0.10429,20981.0,20977.0,2.62e-06]
[1673657826971,0.00019,20981.0,20977.0,2.62e-06]
[1673657827203,0.00019,20981.0,20978.0,0.65065285]
[1673657827702,0.00019,20981.0,20979.0,0.01990694]
[1673657827703,0.66792764,20980.0,20979.0,0.01990694]
[1673657827953,0.7169,20978.0,20977.0,2.62e-06]
[1673657828193,1.56781697,20978.0,20975.0,0.27681171]
[1673657828442,0.99410169,20976.0,20971.0,0.01990694]
[1673657828675,0.5169,20974.0,20969.0,0.32320146]
[1673657828935,1.18482764,20973.0,20969.0,0.00622389]
[1673657829187,0.39434417,20973.0,20970.0,0.26320875]
[1673657829421,0.39434417,20973.0,20969.0,0.00622389]
[1673657829422,0.87154586,20973.0,20969.0,0.00622389]
[1673657829658,0.39434417,20971.0,20969.0,0.00622389]
[1673657830169,0.39434417,20971.0,20970.0,0.33500288]
[1673657830425,0.173096,20971.0,20969.0,2.389e-05]
[1673657830662,0.5171,20973.0,20967.0,0.00633634]
[1673657830663,1.19410169,20970.0,20967.0,0.00633634]
[1673657830919,1.19410169,20970.0,20964.0,0.00019]
[1673657830920,0.7169,20967.0,20964.0,0.00019]
[1673657831172,1.19410169,20967.0,20964.0,0.00019]
[1673657831436,0.5169,20965.0,20960.0,0.01748141]
[1673657831677,0.5169,20963.0,20958.0,0.37181719]
[1673657831933,0.5169,20963.0,20956.0,0.01748141]
[1673657832181,0.5169,20961.0,20955.0,0.33809808]
[1673657832423,0.5169,20959.0,20954.0,0.33088363]
[1673657832689,0.5169,20957.0,20954.0,0.00019]
[1673657832929,0.5169,20957.0,20950.0,0.00961154]
[1673657832930,0.5169,20955.0,20950.0,0.00961154]
[1673657833431,0.47720169,20954.0,20950.0,0.1]
[1673657833677,0.677196,20956.0,20949.0,0.19367624]
[1673657833678,0.67720169,20953.0,20949.0,0.19367624]
[1673657833926,0.2,20952.0,20950.0,0.5419422]
[1673657834166,0.2,20958.0,20950.0,0.5419422]
[1673657834167,0.36172496,20958.0,20953.0,0.11778558]
[1673657834420,0.47720169,20957.0,20953.0,0.30851153]
[1673657834667,0.86477742,20961.0,20953.0,0.05607057]
[1673657834668,0.67720169,20956.0,20953.0,0.05607057]
[1673657834911,0.47720169,20954.0,20949.0,0.19367624]
[1673657835154,1.43176769,20952.0,20947.0,0.00664902]
[1673657835400,0.47720169,20951.0,20947.0,0.00664902]
[1673657835649,0.47720169,20952.0,20948.0,0.95409974]
[1673657835901,0.31857278,20950.0,20948.0,0.95389974]
[1673657836149,0.31413684,20949.0,20948.0,0.95389974]
[1673657836408,1.17296007,20949.0,20948.0,0.16649908]
[1673657836660,0.2,20948.0,20942.0,0.13712999]
[1673657836898,0.47720169,20947.0,20943.0,0.26108255]
[1673657837151,0.2,20948.0,20942.0,0.00931393]
[1673657837387,0.29888423,20949.0,20948.0,0.15816496]
[1673657837637,0.2,20948.0,20942.0,0.19072595]
[1673657837889,0.2,20946.0,20943.0,0.30768907]
[1673657838137,0.47720169,20945.0,20942.0,0.29509282]
[1673657838377,0.47720169,20945.0,20941.0,0.14095037]
[1673657838378,0.47720169,20944.0,20941.0,0.14095037]
[1673657838623,0.67720169,20943.0,20936.0,0.12781606]
[1673657838886,0.67720169,20943.0,20935.0,0.19186102]
[1673657838887,1.38193267,20942.0,20935.0,0.01535427]
[1673657839124,0.47720169,20938.0,20935.0,5.427e-05]
[1673657839372,0.5169,20940.0,20931.0,0.31531197]
[1673657839373,0.47720169,20937.0,20931.0,0.31531197]
[1673657839611,0.2,20936.0,20935.0,0.30804188]
[1673657839856,0.49469098,20942.0,20937.0,0.10029029]
[1673657840108,0.2,20943.0,20937.0,0.10029029]
[1673657840109,0.2,20943.0,20938.0,0.19072595]
[1673657840368,0.47720169,20942.0,20938.0,0.19072595]
[1673657840603,0.47720169,20939.0,20937.0,0.02421458]
[1673657840841,0.67720169,20938.0,20931.0,0.35127948]
[1673657841089,0.47720169,20937.0,20931.0,0.01535427]
[1673657841331,0.31913265,20937.0,20933.0,0.26999597]
[1673657841815,0.31913265,20937.0,20932.0,0.33869805]
[1673657841816,0.47720169,20936.0,20932.0,0.33869805]
[1673657842062,0.38443866,20937.0,20931.0,0.31278697]
[1673657842298,0.47720169,20936.0,20933.0,0.01257349]
[1673657842544,0.2,20935.0,20933.0,0.01257349]
[1673657842783,0.67720169,20935.0,20933.0,0.01257349]
[1673657843023,0.67720169,20935.0,20932.0,0.00664902]
[1673657843295,0.47720169,20934.0,20932.0,0.00664902]
[1673657843557,0.37182744,20935.0,20932.0,0.00664902]
[1673657843558,0.67720169,20933.0,20932.0,0.00664902]
[1673657843809,0.85156623,20933.0,20932.0,0.00664902]
[1673657844073,1.13066536,20933.0,20932.0,0.00664902]
[1673657844312,0.34936454,20933.0,20932.0,0.00664902]
[1673657844812,1.00481019,20933.0,20932.0,4.902e-05]
[1673657845057,1.194647,20932.0,20928.0,0.01257349]
[1673657845321,1.194647,20932.0,20923.0,0.63484453]
[1673657845322,0.2,20932.0,20929.0,0.20329944]
[1673657845562,0.44133969,20936.0,20929.0,0.20329944]
[1673657845563,0.52348418,20938.0,20933.0,0.65785625]
[1673657845811,0.31035,20938.0,20934.0,0.19072595]
[1673657846068,0.31035,20938.0,20936.0,0.0036]
[1673657846303,0.2,20938.0,20936.0,0.19432595]
[1673657846567,0.2,20938.0,20933.0,0.67042974]
[1673657846568,0.2,20936.0,20933.0,0.67042974]
[1673657846806,0.56056214,20938.0,20933.0,0.67042974]
[1673657847048,0.677563,20940.0,20934.0,0.19072595]
[1673657847049,0.31071,20940.0,20934.0,0.19072595]
[1673657847299,0.2,20942.0,20936.0,0.34013772]
[1673657847561,0.32049754,20939.0,20937.0,0.19072595]
[1673657847806,0.35928618,20938.0,20937.0,0.19072595]
[1673657848061,0.1797,20944.0,20938.0,0.01183118]
[1673657848062,0.36035824,20944.0,20938.0,0.01183118]
[1673657848360,0.11067,20949.0,20939.0,0.19072595]
[1673657848609,0.27421391,20947.0,20940.0,0.79072595]
[1673657848845,0.14720644,20951.0,20941.0,0.66792764]
[1673657849087,0.14720644,20951.0,20943.0,0.6]
[1673657849088,0.29450245,20951.0,20943.0,0.6]
[1673657849334,0.26285522,20952.0,20945.0,0.8]
[1673657849587,0.2877413,20953.0,20946.0,0.49072595]
[1673657849824,0.0140324,20956.0,20947.0,0.19072595]
[1673657850061,0.31433218,20956.0,20948.0,0.19072595]
[1673657850336,0.0140324,20956.0,20950.0,0.2]
[1673657850578,0.0140324,20956.0,20950.0,0.3]
[1673657850827,0.11093,20954.0,20948.0,0.15]
[1673657851067,0.65690169,20955.0,20942.0,0.16183118]
[1673657851068,0.99410169,20953.0,20942.0,0.16183118]
[1673657851304,0.2795206,20951.0,20944.0,0.2]
[1673657851584,0.52948564,20954.0,20944.0,0.2]
[1673657851585,0.4930259,20954.0,20948.0,0.01183118]
[1673657851829,0.1111,20954.0,20949.0,0.19072595]
[1673657852076,0.1111,20954.0,20950.0,0.19072595]
[1673657852077,0.32065741,20953.0,20950.0,0.19072595]
[1673657852588,0.34614992,20953.0,20950.0,0.66804095]
[1673657853101,0.34614992,20953.0,20951.0,0.3]
[1673657853353,0.0140324,20956.0,20954.0,0.09390665]
[1673657853599,0.0140324,20956.0,20955.0,0.19072595]
[1673657853832,0.0140324,20956.0,20955.0,0.49072595]
[1673657854090,0.3819259,20965.0,20956.0,0.2]
[1673657854331,0.7169,20963.0,20957.0,0.19072595]
[1673657854572,0.7169,20963.0,20958.0,0.19072595]
[1673657854830,0.5169,20961.0,20958.0,0.19072595]
[1673657855316,0.4919,20961.0,20956.0,0.36126202]
[1673657855550,0.69512675,20961.0,20957.0,0.3]
[1673657855792,0.69512675,20961.0,20957.0,0.49072595]
[1673657855793,0.4819,20961.0,20957.0,0.49072595]
[1673657856036,0.5169,20963.0,20957.0,0.49072595]
[1673657856278,0.5169,20963.0,20958.0,0.19072595]
[1673657857062,0.5169,20961.0,20958.0,0.19072595]
[1673657857297,0.29007429,20962.0,20959.0,0.30101876]
[1673657857547,0.29007429,20962.0,20955.0,0.3]
[1673657857548,0.01315211,20968.0,20960.0,0.49072595]
[1673657857797,0.2,20970.0,20964.0,0.40168285]
[1673657858037,0.2,20970.0,20965.0,0.39072595]
[1673657858283,0.2,20970.0,20966.0,0.49072595]
[1673657858554,0.2,20979.0,20966.0,0.49072595]
[1673657858555,0.2,20980.0,20967.0,0.19072595]
[1673657858796,0.2,20980.0,20968.0,0.19072595]
[1673657859039,0.27832318,20972.0,20969.0,0.19072595]
[1673657859282,0.11426,20977.0,20969.0,0.3]
[1673657859527,0.99410169,20976.0,20969.0,0.20411801]
[1673657859779,0.5169,20974.0,20969.0,0.19072595]
[1673657860036,0.99410169,20973.0,20966.0,0.33914559]
[1673657860278,1.173464,20971.0,20964.0,0.5924088]
[1673657860535,0.3797,20966.0,20963.0,0.23720368]
[1673657860784,0.47720169,20965.0,20963.0,0.23720368]
[1673657861031,0.1797,20966.0,20963.0,0.23720368]
[1673657861277,0.2,20972.0,20965.0,0.26122795]
[1673657861278,0.11454,20972.0,20965.0,0.26122795]
[1673657861532,0.11454,20974.0,20966.0,0.19072595]
[1673657861782,0.1437395,20973.0,20967.0,0.19072595]
[1673657862031,0.11454,20974.0,20966.0,0.01492305]
[1673657862032,0.11454,20974.0,20968.0,0.19072595]
[1673657862281,0.591273,20977.0,20969.0,0.19072595]
[1673657862545,0.32181945,20975.0,20970.0,0.19072595]
[1673657862788,0.01315211,20979.0,20971.0,0.19072595]
[1673657862789,0.39208891,20979.0,20971.0,0.19072595]
[1673657862999,0.39208891,20979.0,20968.0,0.15]
[1673657863000,0.11562,20976.0,20972.0,0.19072595]
[1673657863248,0.2,20975.0,20972.0,0.19072595]
[1673657863487,0.99410169,20974.0,20968.0,0.15]
[1673657863733,0.6966,20971.0,20958.0,0.11454]
[1673657863980,0.3789368,20971.0,20960.0,0.11582]
[1673657864247,0.67720169,20970.0,20962.0,0.33387255]
[1673657864495,0.67720169,20970.0,20959.0,0.43810298]
[1673657864496,0.5169,20968.0,20959.0,0.43810298]
[1673657864744,0.5169,20968.0,20955.0,0.3789368]
[1673657864745,0.2,20966.0,20955.0,0.3789368]
[1673657864986,0.37903614,20966.0,20960.0,0.29486256]
[1673657865234,1.01294,20970.0,20959.0,0.01492305]
[1673657865235,1.39197614,20970.0,20959.0,0.01492305]
[1673657865476,1.39197614,20970.0,20961.0,0.01492305]
[1673657865731,0.5169,20968.0,20962.0,0.19072595]
[1673657865970,0.5169,20966.0,20962.0,0.19072595]
[1673657866215,0.5169,20964.0,20958.0,0.01492305]
[1673657866471,0.5169,20962.0,20951.0,0.37942286]
[1673657866725,1.74374508,20961.0,20952.0,0.01492305]
[1673657866968,1.04646036,20960.0,20953.0,0.01492305]
[1673657867207,1.38482764,20959.0,20953.0,0.01492305]